[Event "Titled Tuesday Blitz February 15 Late 2022"]
[White "Miszler, Levente"]
[Black "Moral Garcia, Serafin"]
[WhiteFideId "763276"]
[BlackFideId "2201925"]
[WhiteElo "1966"]
[BlackElo "2228"]
[Result "0-1"]
[Round "05"]
[TimeControl "180+1"]
[Date "2022.02.16"]
[WhiteClock "0:00:06"]
[BlackClock "0:00:22"]

1. Nf3 {[%clk 0:03:00]}  Nf6 {[%clk 0:02:59]} 2. c4 {[%clk 0:03:00]}  g6 {[%clk 0:02:57]} 3. g3 {[%clk 0:02:59]}  Bg7 {[%clk 0:02:57]} 4. Bg2 {[%clk 0:03:00]}  O-O {[%clk 0:02:57]} 5. O-O {[%clk 0:03:01]}  d5 {[%clk 0:02:55]} 6. d4 {[%clk 0:02:57]}  dxc4 {[%clk 0:02:54]} 7. Qc2 {[%clk 0:02:52]}  Nc6 {[%clk 0:02:44]} 8. Qxc4 {[%clk 0:02:48]}  Be6 {[%clk 0:02:43]} 9. Qa4 {[%clk 0:02:45]}  Bd5 {[%clk 0:02:41]} 10. Nc3 {[%clk 0:02:37]}  e6 {[%clk 0:02:23]} 11. Nxd5 {[%clk 0:02:34]}  Nxd5 {[%clk 0:02:22]} 12. Bd2 {[%clk 0:02:29]}  Nb6 {[%clk 0:02:21]} 13. Qc2 {[%clk 0:02:20]}  Nxd4 {[%clk 0:02:08]} 14. Nxd4 {[%clk 0:02:19]}  Qxd4 {[%clk 0:02:07]} 15. Bc3 {[%clk 0:02:06]}  Qc4 {[%clk 0:02:05]} 16. Bxb7 {[%clk 0:02:00]}  Rab8 {[%clk 0:02:02]} 17. Bf3 {[%clk 0:01:59]}  Na4 {[%clk 0:01:59]} 18. Rac1 {[%clk 0:01:49]}  Bxc3 {[%clk 0:01:48]} 19. b3 {[%clk 0:01:41]}  Qd4 {[%clk 0:01:38]} 20. bxa4 {[%clk 0:01:41]}  Ba5 {[%clk 0:01:38]} 21. Rfd1 {[%clk 0:01:39]}  Qe5 {[%clk 0:01:32]} 22. Qc5 {[%clk 0:01:28]}  Qxc5 {[%clk 0:01:31]} 23. Rxc5 {[%clk 0:01:27]}  Bb6 {[%clk 0:01:32]} 24. Rb5 {[%clk 0:01:19]}  a6 {[%clk 0:01:30]} 25. Rb3 {[%clk 0:01:15]}  Rfd8 {[%clk 0:01:26]} 26. Rdb1 {[%clk 0:01:11]}  Ba7 {[%clk 0:01:26]} 27. Bb7 {[%clk 0:00:52]}  a5 {[%clk 0:01:25]} 28. Bf3 {[%clk 0:00:47]}  Rxb3 {[%clk 0:01:25]} 29. axb3 {[%clk 0:00:46]}  Rd2 {[%clk 0:01:06]} 30. b4 {[%clk 0:00:43]}  axb4 {[%clk 0:01:06]} 31. Rxb4 {[%clk 0:00:43]}  Ra2 {[%clk 0:01:06]} 32. Rb7 {[%clk 0:00:33]}  Bb6 {[%clk 0:01:06]} 33. Rb8+ {[%clk 0:00:29]}  Kg7 {[%clk 0:01:06]} 34. Ra8 {[%clk 0:00:30]}  Kf6 {[%clk 0:01:06]} 35. Kf1 {[%clk 0:00:28]}  Ke5 {[%clk 0:01:06]} 36. Bc6 {[%clk 0:00:26]}  h5 {[%clk 0:00:59]} 37. Bb5 {[%clk 0:00:24]}  Kf6 {[%clk 0:00:53]} 38. h4 {[%clk 0:00:23]}  Kf5 {[%clk 0:00:43]} 39. Kg2 {[%clk 0:00:22]}  Kf6 {[%clk 0:00:39]} 40. Kf3 {[%clk 0:00:21]}  Ra3+ {[%clk 0:00:39]} 41. Bd3 {[%clk 0:00:18]}  Ke5 {[%clk 0:00:38]} 42. Kg2 {[%clk 0:00:14]}  f5 {[%clk 0:00:37]} 43. Bb5 {[%clk 0:00:11]}  Kf6 {[%clk 0:00:36]} 44. Re8 {[%clk 0:00:11]}  e5 {[%clk 0:00:36]} 45. Rd8 {[%clk 0:00:08]}  e4 {[%clk 0:00:34]} 46. Rf8+ {[%clk 0:00:06]}  Kg7 {[%clk 0:00:34]} 47. Re8 {[%clk 0:00:06]}  Kf7 {[%clk 0:00:31]} 48. Re5 {[%clk 0:00:06]}  Rb3 {[%clk 0:00:24]} 49. Rd5 {[%clk 0:00:05]}  Ke6 {[%clk 0:00:23]} 50. Rd8 {[%clk 0:00:05]}  Kf6 {[%clk 0:00:23]} 51. Rg8 {[%clk 0:00:05]}  Ra3 {[%clk 0:00:22]} 52. Re8 {[%clk 0:00:05]}  Kf7 {[%clk 0:00:21]} 53. Rd8 {[%clk 0:00:05]}  c6 {[%clk 0:00:21]} 54. Bxc6 {[%clk 0:00:04]}  Bxd8 {[%clk 0:00:21]} 55. Bb5 {[%clk 0:00:04]}  Ke6 {[%clk 0:00:21]} 56. Bc6 {[%clk 0:00:03]}  Ke5 {[%clk 0:00:21]} 57. Bb5 {[%clk 0:00:04]}  Kd4 {[%clk 0:00:20]} 58. Be8 {[%clk 0:00:05]}  Bb6 {[%clk 0:00:21]} 59. Bxg6 {[%clk 0:00:05]}  Rxa4 {[%clk 0:00:21]} 60. Bxh5 {[%clk 0:00:04]}  e3 {[%clk 0:00:22]} 61. fxe3+ {[%clk 0:00:04]}  Kxe3 {[%clk 0:00:22]} 62. Bf3 {[%clk 0:00:05]}  Bc7 {[%clk 0:00:22]} 63. h5 {[%clk 0:00:05]}  Ra6 {[%clk 0:00:21]} 64. Bd5 {[%clk 0:00:04]}  Bd6 {[%clk 0:00:21]} 65. h6 {[%clk 0:00:04]}  Ra7 {[%clk 0:00:20]} 66. Bg8 {[%clk 0:00:03]}  Be5 {[%clk 0:00:20]} 67. h7 {[%clk 0:00:03]}  Rg7 {[%clk 0:00:20]} 68. Kh3 {[%clk 0:00:03]}  Rxg3+ {[%clk 0:00:20]} 69. Kh4 {[%clk 0:00:03]}  Rg2 {[%clk 0:00:21]} 70. Kh5 {[%clk 0:00:02]}  f4 {[%clk 0:00:21]} 71. h8=Q {[%clk 0:00:01]}  Bxh8 {[%clk 0:00:21]} 72. Kh4 {[%clk 0:00:02]}  Bd4 {[%clk 0:00:21]} 73. Bd5 {[%clk 0:00:03]}  Rxe2 {[%clk 0:00:21]} 74. Bf3 {[%clk 0:00:03]}  Kxf3 {[%clk 0:00:21]} 75. Kh3 {[%clk 0:00:04]}  Rg2 {[%clk 0:00:21]} 76. Kh4 {[%clk 0:00:04]}  Bf6+ {[%clk 0:00:21]} 77. Kh3 {[%clk 0:00:05]}  Rg8 {[%clk 0:00:21]} 78. Kh2 {[%clk 0:00:06]}  Kf2 {[%clk 0:00:22]} 79. Kh3 {[%clk 0:00:06]}  f3 {[%clk 0:00:22]} 80. Kh2 {[%clk 0:00:06]}  Rh8# {[%clk 0:00:22]} 0-1


[Site "https://www.chess.com"]

[Event "Titled Tuesday Blitz February 15 Late 2022"]
[White "Moroni, Luca Jr"]
[Black "Klukin, Kirill"]
[WhiteFideId "865834"]
[BlackFideId "24199273"]
[WhiteElo "2573"]
[BlackElo "2324"]
[Result "1-0"]
[Round "05"]
[TimeControl "180+1"]
[Date "2022.02.15"]
[WhiteClock "0:00:12"]
[BlackClock "0:00:09"]

1. d4 {[%clk 0:03:00]}  d5 {[%clk 0:02:57]} 2. Bf4 {[%clk 0:03:00]}  Nf6 {[%clk 0:02:54]} 3. e3 {[%clk 0:03:00]}  e6 {[%clk 0:02:54]} 4. Nf3 {[%clk 0:02:59]}  Bd6 {[%clk 0:02:55]} 5. Nbd2 {[%clk 0:02:58]}  b6 {[%clk 0:02:55]} 6. c3 {[%clk 0:02:53]}  Bb7 {[%clk 0:02:55]} 7. Bd3 {[%clk 0:02:52]}  O-O {[%clk 0:02:48]} 8. Ne5 {[%clk 0:02:50]}  Nbd7 {[%clk 0:02:42]} 9. Qf3 {[%clk 0:02:47]}  g6 {[%clk 0:02:19]} 10. h4 {[%clk 0:02:37]}  Bxe5 {[%clk 0:02:15]} 11. dxe5 {[%clk 0:02:30]}  Nc5 {[%clk 0:02:14]} 12. Bc2 {[%clk 0:02:11]}  d4 {[%clk 0:02:10]} 13. e4 {[%clk 0:00:58]}  d3 {[%clk 0:02:01]} 14. exf6 {[%clk 0:00:49]}  dxc2 {[%clk 0:02:00]} 15. O-O {[%clk 0:00:46]}  Qxf6 {[%clk 0:01:53]} 16. Rac1 {[%clk 0:00:46]}  e5 {[%clk 0:01:33]} 17. Be3 {[%clk 0:00:32]}  Qxh4 {[%clk 0:01:27]} 18. Bxc5 {[%clk 0:00:26]}  bxc5 {[%clk 0:01:27]} 19. Rxc2 {[%clk 0:00:26]}  Rad8 {[%clk 0:01:27]} 20. Qe3 {[%clk 0:00:23]}  c4 {[%clk 0:01:22]} 21. Re1 {[%clk 0:00:20]}  Rd3 {[%clk 0:00:44]} 22. Qxa7 {[%clk 0:00:20]}  Rfd8 {[%clk 0:00:45]} 23. Qxb7 {[%clk 0:00:20]}  Rxd2 {[%clk 0:00:44]} 24. Rxd2 {[%clk 0:00:21]}  Rxd2 {[%clk 0:00:45]} 25. Rf1 {[%clk 0:00:22]}  Qe7 {[%clk 0:00:39]} 26. a4 {[%clk 0:00:22]}  Qd6 {[%clk 0:00:33]} 27. a5 {[%clk 0:00:21]}  Rd1 {[%clk 0:00:33]} 28. g3 {[%clk 0:00:10]}  c6 {[%clk 0:00:03]} 29. a6 {[%clk 0:00:07]}  Rxf1+ {[%clk 0:00:02]} 30. Kxf1 {[%clk 0:00:08]}  Qd3+ {[%clk 0:00:03]} 31. Kg1 {[%clk 0:00:08]}  Qxe4 {[%clk 0:00:03]} 32. a7 {[%clk 0:00:04]}  Qe1+ {[%clk 0:00:04]} 33. Kg2 {[%clk 0:00:04]}  Qe4+ {[%clk 0:00:04]} 34. Kg1 {[%clk 0:00:04]}  Qe1+ {[%clk 0:00:04]} 35. Kg2 {[%clk 0:00:04]}  Qe4+ {[%clk 0:00:05]} 36. Kh2 {[%clk 0:00:05]}  Qf3 {[%clk 0:00:03]} 37. a8=Q+ {[%clk 0:00:06]}  Kg7 {[%clk 0:00:03]} 38. Qxc6 {[%clk 0:00:06]}  Qxf2+ {[%clk 0:00:04]} 39. Qg2 {[%clk 0:00:07]}  Qf6 {[%clk 0:00:04]} 40. Qaf3 {[%clk 0:00:07]}  h5 {[%clk 0:00:05]} 41. Qxf6+ {[%clk 0:00:07]}  Kxf6 {[%clk 0:00:06]} 42. Qf1+ {[%clk 0:00:08]}  Ke6 {[%clk 0:00:07]} 43. Qxc4+ {[%clk 0:00:09]}  Kf6 {[%clk 0:00:07]} 44. Qe2 {[%clk 0:00:10]}  Ke6 {[%clk 0:00:08]} 45. Kg2 {[%clk 0:00:10]}  f5 {[%clk 0:00:08]} 46. b4 {[%clk 0:00:11]}  e4 {[%clk 0:00:09]} 47. b5 {[%clk 0:00:12]} 1-0


[Site "https://www.chess.com"]

[Event "Titled Tuesday Blitz February 15 Late 2022"]
[White "Osmonbekov, Talaibek"]
[Black "Samarth, J Rao"]
[WhiteFideId "2017253"]
[BlackFideId "46652370"]
[WhiteElo "2135"]
[BlackElo "1514"]
[Result "0-1"]
[Round "05"]
[TimeControl "180+1"]
[Date "2022.02.16"]
[WhiteClock "0:00:21"]
[BlackClock "0:00:49"]

1. d4 {[%clk 0:03:00]}  d5 {[%clk 0:02:39]} 2. Nc3 {[%clk 0:03:00]}  Nf6 {[%clk 0:02:37]} 3. Bf4 {[%clk 0:03:00]}  e6 {[%clk 0:02:28]} 4. e3 {[%clk 0:03:00]}  Bb4 {[%clk 0:02:27]} 5. Bd3 {[%clk 0:03:00]}  c5 {[%clk 0:02:25]} 6. dxc5 {[%clk 0:03:00]}  Nbd7 {[%clk 0:02:21]} 7. Ne2 {[%clk 0:02:56]}  Nxc5 {[%clk 0:02:20]} 8. a3 {[%clk 0:02:54]}  Nxd3+ {[%clk 0:02:18]} 9. cxd3 {[%clk 0:02:52]}  Be7 {[%clk 0:02:17]} 10. Nb5 {[%clk 0:02:43]}  O-O {[%clk 0:02:15]} 11. Nc7 {[%clk 0:02:41]}  Rb8 {[%clk 0:02:15]} 12. Nb5 {[%clk 0:02:25]}  Bd7 {[%clk 0:02:02]} 13. Bxb8 {[%clk 0:02:20]}  Qxb8 {[%clk 0:02:02]} 14. Nbc3 {[%clk 0:02:12]}  e5 {[%clk 0:02:00]} 15. O-O {[%clk 0:02:11]}  Bc6 {[%clk 0:01:57]} 16. Rc1 {[%clk 0:02:03]}  Bd6 {[%clk 0:01:53]} 17. Ng3 {[%clk 0:01:57]}  g6 {[%clk 0:01:49]} 18. b4 {[%clk 0:01:54]}  a6 {[%clk 0:01:49]} 19. e4 {[%clk 0:01:53]}  d4 {[%clk 0:01:48]} 20. Nb1 {[%clk 0:01:51]}  h5 {[%clk 0:01:48]} 21. Nd2 {[%clk 0:01:46]}  h4 {[%clk 0:01:49]} 22. Ne2 {[%clk 0:01:46]}  Kg7 {[%clk 0:01:46]} 23. Nc4 {[%clk 0:01:42]}  Bc7 {[%clk 0:01:46]} 24. Qd2 {[%clk 0:01:24]}  Qe8 {[%clk 0:01:44]} 25. f4 {[%clk 0:01:21]}  Ng4 {[%clk 0:01:40]} 26. h3 {[%clk 0:01:16]}  Ne3 {[%clk 0:01:28]} 27. Nxe3 {[%clk 0:01:14]}  dxe3 {[%clk 0:01:28]} 28. Qxe3 {[%clk 0:01:14]}  exf4 {[%clk 0:01:27]} 29. Nxf4 {[%clk 0:01:13]}  Qd8 {[%clk 0:01:28]} 30. d4 {[%clk 0:00:59]}  Re8 {[%clk 0:01:26]} 31. e5 {[%clk 0:00:52]}  Bb6 {[%clk 0:01:25]} 32. Rfd1 {[%clk 0:00:50]}  Qg5 {[%clk 0:01:24]} 33. Kh1 {[%clk 0:00:32]}  f6 {[%clk 0:00:51]} 34. e6 {[%clk 0:00:27]}  Bc7 {[%clk 0:00:51]} 35. Rf1 {[%clk 0:00:23]}  Bxf4 {[%clk 0:00:50]} 36. Qxf4 {[%clk 0:00:21]}  Qxg2# {[%clk 0:00:49]} 0-1


[Site "https://www.chess.com"]

[Event "Titled Tuesday Blitz February 15 Late 2022"]
[White "Papp, Petra"]
[Black "Sarkar, Justin"]
[WhiteFideId "739049"]
[BlackFideId "2010011"]
[WhiteElo "2259"]
[BlackElo "2038"]
[Result "1/2-1/2"]
[Round "05"]
[TimeControl "180+1"]
[Date "2022.02.16"]
[WhiteClock "0:00:05"]
[BlackClock "0:00:07"]

1. d4 {[%clk 0:02:54]}  Nf6 {[%clk 0:02:52]} 2. Bf4 {[%clk 0:02:53]}  d5 {[%clk 0:02:49]} 3. e3 {[%clk 0:02:53]}  Bf5 {[%clk 0:02:49]} 4. c4 {[%clk 0:02:51]}  e6 {[%clk 0:02:46]} 5. Nc3 {[%clk 0:02:50]}  c6 {[%clk 0:02:32]} 6. Qb3 {[%clk 0:02:39]}  Qb6 {[%clk 0:02:25]} 7. c5 {[%clk 0:02:38]}  Qxb3 {[%clk 0:02:05]} 8. axb3 {[%clk 0:02:38]}  Be7 {[%clk 0:01:58]} 9. b4 {[%clk 0:02:31]}  O-O {[%clk 0:01:54]} 10. Nf3 {[%clk 0:02:30]}  Nh5 {[%clk 0:01:30]} 11. Be5 {[%clk 0:02:27]}  Nd7 {[%clk 0:01:01]} 12. h3 {[%clk 0:02:16]}  Nhf6 {[%clk 0:00:48]} 13. Bh2 {[%clk 0:02:15]}  a6 {[%clk 0:00:44]} 14. Nd2 {[%clk 0:02:11]}  Rac8 {[%clk 0:00:31]} 15. Nb3 {[%clk 0:02:08]}  Bd8 {[%clk 0:00:27]} 16. Na5 {[%clk 0:02:01]}  Bxa5 {[%clk 0:00:17]} 17. bxa5 {[%clk 0:02:01]}  Ne8 {[%clk 0:00:17]} 18. Na4 {[%clk 0:01:55]}  Nc7 {[%clk 0:00:14]} 19. Nb6 {[%clk 0:01:55]}  Nxb6 {[%clk 0:00:13]} 20. axb6 {[%clk 0:01:54]}  Nb5 {[%clk 0:00:10]} 21. Bxb5 {[%clk 0:01:53]}  cxb5 {[%clk 0:00:10]} 22. Kd2 {[%clk 0:01:50]}  Rc6 {[%clk 0:00:09]} 23. b4 {[%clk 0:01:47]}  f6 {[%clk 0:00:08]} 24. g4 {[%clk 0:01:40]}  Be4 {[%clk 0:00:08]} 25. Rhg1 {[%clk 0:01:35]}  e5 {[%clk 0:00:08]} 26. Rg3 {[%clk 0:01:26]}  Re8 {[%clk 0:00:08]} 27. f3 {[%clk 0:01:24]}  Bg6 {[%clk 0:00:07]} 28. Rg2 {[%clk 0:01:18]}  exd4 {[%clk 0:00:07]} 29. exd4 {[%clk 0:01:17]}  Ree6 {[%clk 0:00:07]} 30. Bf4 {[%clk 0:01:15]}  Be8 {[%clk 0:00:07]} 31. Re2 {[%clk 0:01:14]}  Bd7 {[%clk 0:00:06]} 32. Bd6 {[%clk 0:01:08]}  Rxe2+ {[%clk 0:00:05]} 33. Kxe2 {[%clk 0:01:08]}  Rc8 {[%clk 0:00:05]} 34. Kd2 {[%clk 0:01:07]}  Re8 {[%clk 0:00:05]} 35. h4 {[%clk 0:01:06]}  Kf7 {[%clk 0:00:04]} 36. h5 {[%clk 0:01:06]}  Bc6 {[%clk 0:00:04]} 37. Rh1 {[%clk 0:01:04]}  Re6 {[%clk 0:00:04]} 38. h6 {[%clk 0:01:03]}  g6 {[%clk 0:00:04]} 39. Rf1 {[%clk 0:01:00]}  Re8 {[%clk 0:00:04]} 40. Kd3 {[%clk 0:01:00]}  Re6 {[%clk 0:00:04]} 41. f4 {[%clk 0:01:00]}  Re4 {[%clk 0:00:04]} 42. Bc7 {[%clk 0:00:51]}  Re7 {[%clk 0:00:04]} 43. Bd6 {[%clk 0:00:39]}  Re4 {[%clk 0:00:04]} 44. Rf2 {[%clk 0:00:38]}  Re8 {[%clk 0:00:04]} 45. g5 {[%clk 0:00:27]}  f5 {[%clk 0:00:04]} 46. Be5 {[%clk 0:00:27]}  Re6 {[%clk 0:00:04]} 47. Bf6 {[%clk 0:00:24]}  Re4 {[%clk 0:00:04]} 48. Be5 {[%clk 0:00:24]}  Ke6 {[%clk 0:00:05]} 49. Rf1 {[%clk 0:00:23]}  Kf7 {[%clk 0:00:05]} 50. Rf2 {[%clk 0:00:22]}  Ke6 {[%clk 0:00:05]} 51. Rh2 {[%clk 0:00:14]}  Kf7 {[%clk 0:00:05]} 52. Rh1 {[%clk 0:00:14]}  Ke6 {[%clk 0:00:06]} 53. Rh5 {[%clk 0:00:10]}  Kf7 {[%clk 0:00:05]} 54. Rh4 {[%clk 0:00:10]}  Ke6 {[%clk 0:00:05]} 55. Rh2 {[%clk 0:00:07]}  Kf7 {[%clk 0:00:05]} 56. Ra2 {[%clk 0:00:07]}  Ke6 {[%clk 0:00:05]} 57. Bc7 {[%clk 0:00:07]}  Kf7 {[%clk 0:00:05]} 58. Rd2 {[%clk 0:00:05]}  Ke6 {[%clk 0:00:05]} 59. Rf2 {[%clk 0:00:05]}  Kf7 {[%clk 0:00:05]} 60. Bd6 {[%clk 0:00:05]}  Ke6 {[%clk 0:00:05]} 61. Be5 {[%clk 0:00:04]}  Kf7 {[%clk 0:00:05]} 62. Re2 {[%clk 0:00:03]}  Rxe2 {[%clk 0:00:04]} 63. Kxe2 {[%clk 0:00:04]}  Ke6 {[%clk 0:00:05]} 64. Ke3 {[%clk 0:00:04]}  Kf7 {[%clk 0:00:05]} 65. Kf3 {[%clk 0:00:04]}  Ke6 {[%clk 0:00:06]} 66. Ke3 {[%clk 0:00:04]}  Kf7 {[%clk 0:00:06]} 67. Kf3 {[%clk 0:00:05]}  Ke6 {[%clk 0:00:07]} 68. Ke3 {[%clk 0:00:05]} 1/2-1/2


[Site "https://www.chess.com"]

[Event "Titled Tuesday Blitz February 15 Late 2022"]
[White "Pinheiro, Iung Alicio de O."]
[Black "Antolak, Julia"]
[WhiteFideId "2104350"]
[BlackFideId "1159569"]
[WhiteElo "2632"]
[BlackElo "2104"]
[Result "1-0"]
[Round "05"]
[TimeControl "180+1"]
[Date "2022.02.16"]
[WhiteClock "0:00:14"]
[BlackClock "0:00:03"]

1. e4 {[%clk 0:03:00]}  c5 {[%clk 0:02:59]} 2. Nf3 {[%clk 0:02:59]}  e6 {[%clk 0:03:00]} 3. c3 {[%clk 0:02:59]}  d5 {[%clk 0:02:59]} 4. exd5 {[%clk 0:02:59]}  Qxd5 {[%clk 0:03:00]} 5. d4 {[%clk 0:02:59]}  Nc6 {[%clk 0:02:59]} 6. Na3 {[%clk 0:02:56]}  Nf6 {[%clk 0:02:57]} 7. Be3 {[%clk 0:02:56]}  Ng4 {[%clk 0:02:52]} 8. Bg5 {[%clk 0:02:44]}  Be7 {[%clk 0:02:30]} 9. Nb5 {[%clk 0:02:32]}  Qd8 {[%clk 0:02:29]} 10. Bxe7 {[%clk 0:02:17]}  Qxe7 {[%clk 0:02:24]} 11. dxc5 {[%clk 0:02:16]}  Qxc5 {[%clk 0:02:14]} 12. Nc7+ {[%clk 0:01:53]}  Ke7 {[%clk 0:02:14]} 13. Qe2 {[%clk 0:01:51]}  Rb8 {[%clk 0:01:48]} 14. h3 {[%clk 0:01:50]}  Nge5 {[%clk 0:01:44]} 15. Nb5 {[%clk 0:01:32]}  Rd8 {[%clk 0:01:24]} 16. Nxe5 {[%clk 0:01:30]}  Nxe5 {[%clk 0:01:22]} 17. Qe4 {[%clk 0:01:09]}  Bd7 {[%clk 0:01:00]} 18. Nd4 {[%clk 0:00:45]}  Bc6 {[%clk 0:01:00]} 19. Qh4+ {[%clk 0:00:45]}  Kf8 {[%clk 0:00:54]} 20. O-O-O {[%clk 0:00:43]}  Kg8 {[%clk 0:00:44]} 21. Be2 {[%clk 0:00:39]}  Ng6 {[%clk 0:00:42]} 22. Qg3 {[%clk 0:00:36]}  Rbc8 {[%clk 0:00:40]} 23. Qe3 {[%clk 0:00:32]}  Bd5 {[%clk 0:00:36]} 24. Kb1 {[%clk 0:00:31]}  Qa5 {[%clk 0:00:32]} 25. Nb3 {[%clk 0:00:29]}  Qa4 {[%clk 0:00:30]} 26. Rd4 {[%clk 0:00:27]}  Qc6 {[%clk 0:00:27]} 27. Rhd1 {[%clk 0:00:27]}  Re8 {[%clk 0:00:22]} 28. f3 {[%clk 0:00:26]}  e5 {[%clk 0:00:16]} 29. Rxd5 {[%clk 0:00:25]}  Nf4 {[%clk 0:00:16]} 30. R5d2 {[%clk 0:00:23]}  Nxg2 {[%clk 0:00:16]} 31. Qf2 {[%clk 0:00:23]}  Nf4 {[%clk 0:00:15]} 32. Bf1 {[%clk 0:00:24]}  a6 {[%clk 0:00:11]} 33. Nc1 {[%clk 0:00:20]}  Qg6+ {[%clk 0:00:10]} 34. Ka1 {[%clk 0:00:20]}  h6 {[%clk 0:00:10]} 35. Nd3 {[%clk 0:00:20]}  Nh5 {[%clk 0:00:05]} 36. Qg2 {[%clk 0:00:16]}  Qf6 {[%clk 0:00:05]} 37. Qe2 {[%clk 0:00:15]}  b5 {[%clk 0:00:02]} 38. Qe4 {[%clk 0:00:15]}  Ng3 {[%clk 0:00:02]} 39. Qg4 {[%clk 0:00:15]}  Nxf1 {[%clk 0:00:02]} 40. Rxf1 {[%clk 0:00:15]}  Rcd8 {[%clk 0:00:03]} 41. Rfd1 {[%clk 0:00:16]}  Qc6 {[%clk 0:00:02]} 42. Nf2 {[%clk 0:00:15]}  Rxd2 {[%clk 0:00:02]} 43. Rxd2 {[%clk 0:00:16]}  Qc5 {[%clk 0:00:03]} 44. Qe4 {[%clk 0:00:15]}  Rc8 {[%clk 0:00:02]} 45. a3 {[%clk 0:00:14]}  b4 {[%clk 0:00:02]} 46. axb4 {[%clk 0:00:14]}  Qc6 {[%clk 0:00:03]} 47. Qxc6 {[%clk 0:00:14]} 1-0


[Site "https://www.chess.com"]

[Event "Titled Tuesday Blitz February 15 Late 2022"]
[White "Pinto, Daniel"]
[Black "Freitag, Manfred"]
[WhiteFideId "3303144"]
[BlackFideId "1602004"]
[WhiteElo "1938"]
[BlackElo "2275"]
[Result "0-1"]
[Round "05"]
[TimeControl "180+1"]
[Date "2022.02.16"]
[WhiteClock "0:00:01"]
[BlackClock "0:01:41"]

1. e4 {[%clk 0:03:00]}  c6 {[%clk 0:02:58]} 2. d4 {[%clk 0:02:50]}  d5 {[%clk 0:02:58]} 3. e5 {[%clk 0:02:50]}  Bf5 {[%clk 0:02:58]} 4. h4 {[%clk 0:02:43]}  h5 {[%clk 0:02:57]} 5. Bd3 {[%clk 0:02:41]}  Bxd3 {[%clk 0:02:55]} 6. Qxd3 {[%clk 0:02:42]}  Qa5+ {[%clk 0:02:55]} 7. Nc3 {[%clk 0:02:39]}  e6 {[%clk 0:02:51]} 8. Nf3 {[%clk 0:02:36]}  Qa6 {[%clk 0:02:51]} 9. Ke2 {[%clk 0:02:30]}  Ne7 {[%clk 0:02:48]} 10. b4 {[%clk 0:02:16]}  Qxd3+ {[%clk 0:02:43]} 11. Kxd3 {[%clk 0:02:15]}  Nf5 {[%clk 0:02:42]} 12. Rb1 {[%clk 0:01:40]}  Nd7 {[%clk 0:02:39]} 13. Ne2 {[%clk 0:01:15]}  b5 {[%clk 0:02:33]} 14. Ng3 {[%clk 0:00:55]}  g6 {[%clk 0:02:23]} 15. c3 {[%clk 0:00:41]}  a5 {[%clk 0:02:22]} 16. a3 {[%clk 0:00:40]}  Nb6 {[%clk 0:02:18]} 17. Nxf5 {[%clk 0:00:17]}  gxf5 {[%clk 0:02:18]} 18. Nd2 {[%clk 0:00:17]}  Rg8 {[%clk 0:02:14]} 19. g3 {[%clk 0:00:17]}  f4 {[%clk 0:02:14]} 20. gxf4 {[%clk 0:00:15]}  Rg4 {[%clk 0:02:09]} 21. Nf3 {[%clk 0:00:06]}  Nc4 {[%clk 0:02:08]} 22. Rb3 {[%clk 0:00:01]}  axb4 {[%clk 0:01:51]} 23. axb4 {[%clk 0:00:02]}  Ra1 {[%clk 0:01:44]} 24. Kc2 {[%clk 0:00:01]}  Rg2 {[%clk 0:01:41]} 0-1


[Site "https://www.chess.com"]

[Event "Titled Tuesday Blitz February 15 Late 2022"]
[White "Prohorov, Olexandr"]
[Black "Lopez Idarraga, Daniel Eduardo"]
[WhiteFideId "14105578"]
[BlackFideId "4405501"]
[WhiteElo "1993"]
[BlackElo "1993"]
[Result "0-1"]
[Round "05"]
[TimeControl "180+1"]
[Date "2022.02.16"]
[WhiteClock "0:00:41"]
[BlackClock "0:00:20"]

1. e4 {[%clk 0:03:00]}  c5 {[%clk 0:02:55]} 2. c3 {[%clk 0:02:56]}  e6 {[%clk 0:02:50]} 3. d4 {[%clk 0:02:54]}  d5 {[%clk 0:02:50]} 4. exd5 {[%clk 0:02:54]}  exd5 {[%clk 0:02:51]} 5. Nf3 {[%clk 0:02:55]}  Nf6 {[%clk 0:02:51]} 6. Bb5+ {[%clk 0:02:54]}  Nc6 {[%clk 0:02:50]} 7. O-O {[%clk 0:02:48]}  c4 {[%clk 0:02:48]} 8. Re1+ {[%clk 0:02:46]}  Be7 {[%clk 0:02:47]} 9. b3 {[%clk 0:02:40]}  cxb3 {[%clk 0:02:47]} 10. axb3 {[%clk 0:02:41]}  O-O {[%clk 0:02:47]} 11. h3 {[%clk 0:02:39]}  Bf5 {[%clk 0:02:45]} 12. Nbd2 {[%clk 0:02:38]}  h6 {[%clk 0:02:44]} 13. Nf1 {[%clk 0:02:38]}  Bh7 {[%clk 0:02:43]} 14. Ng3 {[%clk 0:02:36]}  a6 {[%clk 0:02:42]} 15. Bd3 {[%clk 0:02:36]}  Bxd3 {[%clk 0:02:41]} 16. Qxd3 {[%clk 0:02:37]}  Rc8 {[%clk 0:02:42]} 17. Nf5 {[%clk 0:02:36]}  Re8 {[%clk 0:02:38]} 18. Bf4 {[%clk 0:02:29]}  Bf8 {[%clk 0:02:36]} 19. Ne5 {[%clk 0:02:22]}  Nxe5 {[%clk 0:02:36]} 20. Bxe5 {[%clk 0:02:22]}  Ne4 {[%clk 0:02:29]} 21. c4 {[%clk 0:02:22]}  Nd6 {[%clk 0:02:19]} 22. c5 {[%clk 0:02:17]}  Nxf5 {[%clk 0:02:19]} 23. Qxf5 {[%clk 0:02:18]}  Rc6 {[%clk 0:02:07]} 24. Re3 {[%clk 0:02:02]}  Rce6 {[%clk 0:02:06]} 25. Rae1 {[%clk 0:02:03]}  g6 {[%clk 0:01:51]} 26. Qg4 {[%clk 0:01:54]}  Bg7 {[%clk 0:01:49]} 27. Bxg7 {[%clk 0:01:41]}  Rxe3 {[%clk 0:01:47]} 28. Rxe3 {[%clk 0:01:42]}  Kxg7 {[%clk 0:01:37]} 29. Rxe8 {[%clk 0:01:10]}  Qxe8 {[%clk 0:01:38]} 30. Qf4 {[%clk 0:01:04]}  Qe1+ {[%clk 0:01:06]} 31. Kh2 {[%clk 0:01:04]}  a5 {[%clk 0:01:06]} 32. g4 {[%clk 0:00:52]}  Qe6 {[%clk 0:00:32]} 33. Kg2 {[%clk 0:00:51]}  b6 {[%clk 0:00:28]} 34. cxb6 {[%clk 0:00:44]}  Qxb6 {[%clk 0:00:26]} 35. Qe5+ {[%clk 0:00:44]}  Kh7 {[%clk 0:00:26]} 36. Qxd5 {[%clk 0:00:44]}  Kg7 {[%clk 0:00:25]} 37. h4 {[%clk 0:00:44]}  Qb4 {[%clk 0:00:22]} 38. Qc4 {[%clk 0:00:43]}  Qxc4 {[%clk 0:00:21]} 39. b4 {[%clk 0:00:41]}  Qxb4 {[%clk 0:00:20]} 0-1


[Site "https://www.chess.com"]